fUSD/lending_fUSD_20260406
["ID","MTS","AMOUNT","RATE_DAILY","PERIOD"]
[419878802,1775459448554,-151.0,0.00015997,2]
[419878803,1775459448565,-733.724783,0.00015997,2]
[419878804,1775459448575,-151.0,0.00015997,2]
[419878805,1775459448585,-151.0,0.00015997,2]
[419878806,1775459448596,-178.056,0.00015999,2]
[419878807,1775459448609,-500.0,0.00015999,2]
[419878808,1775459448619,-500.0,0.00015999,2]
[419878809,1775459448631,-500.0,0.00015999,2]
[419878810,1775459448643,-500.0,0.00015999,2]
[419878811,1775459448653,-500.0,0.00015999,2]
[419878812,1775459448664,-500.0,0.00015999,2]
[419878813,1775459448673,-500.0,0.00015999,2]
[419878814,1775459448684,-348.586408,0.00015999,2]
[419878815,1775459448694,-500.0,0.00015999,2]
[419878816,1775459448704,-500.0,0.00015999,2]
[419878817,1775459448715,-500.0,0.00015999,2]
[419878818,1775459448725,-500.0,0.00015999,2]
[419878819,1775459448735,-500.0,0.00015999,2]
[419878820,1775459448745,-500.0,0.00015999,2]
[419878821,1775459448756,-500.0,0.00015999,2]
[419878822,1775459449092,-500.0,0.00015999,2]
[419878823,1775459449104,-500.0,0.00015999,2]
[419878824,1775459449113,-500.0,0.00015999,2]
[419878825,1775459449123,-500.0,0.00015999,2]
[419878826,1775459449133,-500.0,0.00015999,2]
[419878827,1775459449143,-500.0,0.00015999,2]
[419878828,1775459449152,-341.45996696,0.00015999,2]
[419878829,1775459449162,-500.0,0.00015999,2]
[419878830,1775459449172,-500.0,0.00015999,2]
[419878831,1775459449182,-500.0,0.00015999,2]
[419878832,1775459449191,-500.0,0.00015999,2]
[419878833,1775459449201,-500.0,0.00015999,2]
[419878834,1775459449211,-500.0,0.00015999,2]
[419878835,1775459449228,-500.0,0.00015999,2]
[419878836,1775459449238,-500.0,0.00015999,2]
[419878837,1775459449248,-500.0,0.00015999,2]
[419878838,1775459449259,-500.0,0.00015999,2]
[419878839,1775459449269,-415.05,0.00015999,2]
[419878840,1775459449279,-500.0,0.00015999,2]
[419878841,1775459449290,-500.0,0.00015999,2]
[419878842,1775459449301,-500.0,0.00015999,2]
[419878843,1775459449311,-500.0,0.00015999,2]
[419878844,1775459449322,-153.3776321,0.00015999,2]
[419878845,1775459449333,-500.0,0.00015999,2]
[419878846,1775459449343,-500.0,0.00015999,2]
[419878847,1775459449353,-176.21304902,0.00015999,2]
[419878848,1775459449365,-151.0,0.00015999,2]
[419878849,1775459449376,-387.874945,0.00015999,2]
[419878850,1775459449386,-387.874945,0.00015999,2]
[419878851,1775459449396,-387.874945,0.00015999,2]
[419878852,1775459449406,-1117.743285,0.00015999,2]
[419878853,1775459449416,-387.874945,0.00015999,2]
[419878854,1775459449427,-1117.743285,0.00015999,2]
[419878855,1775459449438,-1948.501517,0.00015999,2]
[419878856,1775459449448,-1117.743285,0.00015999,2]
[419878857,1775459449459,-208.839872,0.00015999,2]
[419878858,1775459449469,-1948.501517,0.00015999,2]
[419878859,1775459449479,-1117.743285,0.00015999,2]
[419878860,1775459449489,-208.839872,0.00015999,2]
[419878861,1775459449499,-1948.501517,0.00015999,2]
[419878862,1775459449509,-208.839872,0.00015999,2]
[419878863,1775459449520,-151.0,0.00015999,2]
[419878864,1775459449530,-151.0,0.00015999,2]
[419878865,1775459449540,-208.839872,0.00015999,2]
[419878866,1775459449551,-151.0,0.00015999,2]
[419878867,1775459449561,-1948.501517,0.00015999,2]
[419878868,1775459449572,-151.0,0.00015999,2]
[419878869,1775459449582,-2989.586038,0.00015999,2]
[419878870,1775459449592,-151.0,0.00015999,2]
[419878871,1775459449603,-2989.586038,0.00015999,2]
[419878872,1775459449614,-2989.586038,0.00015999,2]
[419878873,1775459449624,-306.481662,0.00015999,2]
[419878874,1775459449635,-2989.586038,0.00015999,2]
[419878875,1775459449646,-306.481662,0.00015999,2]
[419878876,1775459449657,-306.481662,0.00015999,2]
[419878877,1775459449667,-306.481662,0.00015999,2]
[419878878,1775459449678,-495.861592,0.00015999,2]
[419878879,1775459449689,-1885.671826,0.00015999,2]
[419878880,1775459449700,-495.861592,0.00015999,2]
[419878881,1775459449711,-1885.671826,0.00015999,2]
[419878882,1775459449728,-151.0,0.00015999,2]
[419878883,1775459449739,-495.861592,0.00015999,2]
[419878884,1775459449749,-1885.671826,0.00015999,2]
[419878885,1775459449760,-875.128491,0.00015999,2]
[419878886,1775459449771,-151.0,0.00015999,2]
[419878887,1775459449781,-495.861592,0.00015999,2]
[419878888,1775459449792,-1885.671826,0.00015999,2]
[419878889,1775459449802,-875.128491,0.00015999,2]
[419878890,1775459449813,-151.0,0.00015999,2]
[419878891,1775459449823,-973.389471,0.00015999,2]
[419878892,1775459449833,-875.128491,0.00015999,2]
[419878893,1775459449844,-973.389471,0.00015999,2]
[419878894,1775459449854,-875.128491,0.00015999,2]
[419878895,1775459449865,-973.389471,0.00015999,2]
[419878896,1775459449875,-973.389471,0.00015999,2]
[419878897,1775459449886,-1719.882742,0.00015999,2]
[419878898,1775459449896,-1719.882742,0.00015999,2]
[419878899,1775459449907,-418.44005,0.00015999,2]
[419878900,1775459449917,-1719.882742,0.00015999,2]
[419878901,1775459449927,-418.44005,0.00015999,2]
[419878902,1775459449937,-1719.882742,0.00015999,2]
[419878903,1775459449948,-418.44005,0.00015999,2]
[419878904,1775459449958,-418.44005,0.00015999,2]
[419878905,1775459449968,-155.27197355,0.00016,2]
[419878906,1775459449979,-207.58250816,0.00016,2]
[419878907,1775459449989,-154.21213872,0.00016,2]
[419878908,1775459449999,-151.68583305,0.00016,2]
[419878909,1775459450010,-680367.25258176,0.00016,2]
[419878910,1775459450039,-811.25815889,0.00016,2]
[419878911,1775459450151,-325.47403664,0.00014913,2]
[419878912,1775459450189,-174.52596336,0.00014913,2]
[419878913,1775459450200,-500.0,0.00014913,2]
[419878914,1775459450213,-31.35425489,0.00015997,2]
[419878915,1775459450227,-451.51052111,0.00015997,2]
[419878916,1775459450237,-48.65552576,0.00016,2]
[419878917,1775459451805,-160.0,0.00014424,7]
[419878918,1775459451815,-274.128447,0.00014424,7]
[419878919,1775459451824,-1143.27707649,0.00014426,2]
[419878920,1775459451834,-295.59447651,0.00014426,2]
[419878946,1775460309480,200.0,3.5e-06,7]
[419878947,1775460432595,296.22,6.114e-05,2]
[419878948,1775460432784,296.22,6.435e-05,2]
[419878949,1775460432979,296.22,6.757e-05,2]
[419878950,1775460433188,296.22,7.079e-05,2]
[419878951,1775460434010,296.22,7.401e-05,2]
[419878952,1775460434081,296.22,7.722e-05,2]
[419878953,1775460434157,296.22,8.044e-05,2]
[419878954,1775460434216,296.22,8.366e-05,2]
[419878955,1775460631362,-296.22,8.688e-05,2]
[419878956,1775460631372,-5.66919529,9.009e-05,2]
[419878957,1775460631413,-290.55080471,9.009e-05,2]
[419878958,1775460631424,-265.37022215,9.331e-05,2]
[419878959,1775460631437,-30.84977785,9.331e-05,2]
[419878960,1775460631446,-224.98916954,9.653e-05,2]
[419878961,1775460631460,-71.23083046,9.653e-05,2]
[419878962,1775460631470,-2512.90709714,9.975e-05,2]
[419878963,1775460631483,-390.72093551,9.975e-05,2]
[419878964,1775460631494,-281.36906449,9.975e-05,2]
[419878965,1775460631525,-14.85093551,9.975e-05,2]
[419878966,1775460631536,-296.22,0.00010296,2]
[419878967,1775460631546,-296.22,0.00010618,2]
[419878968,1775460631556,-296.22,0.0001094,2]
[419878969,1775460631567,-296.22,0.00011262,2]
[419878970,1775460631577,-992.0,0.00011392,2]
[419878971,1775460631588,-235.0,0.00011392,2]
[419878972,1775460631598,-158.46,0.00011394,2]
[419878973,1775460631608,-293.81122194,0.00011414,2]
[419878974,1775460631619,-150.0,0.000115,2]
[419878975,1775460631630,-1523.19,0.00011507,2]
[419878976,1775460631641,-296.22,0.00011583,2]
[419878977,1775460631651,-250.0,0.00011748,2]
[419878978,1775460631662,-296.22,0.00011905,2]
[419878979,1775460631672,-296.22,0.00012227,2]
[419878980,1775460631682,-1048.90137287,0.00012249,2]
[419878982,1775460631695,-391.88,0.00012249,2]
[419878983,1775460631727,-559.21862713,0.00012249,2]
[419878984,1775460631737,-200.0,0.00012371,2]
[419878985,1775460631747,-347.42328602,0.0001253,2]
[419878986,1775460631760,-837.4301559,0.0001253,2]
[419878987,1775460631792,-1421.69894956,0.0001253,2]
[419878989,1775460631804,-1524.0230709,0.0001253,2]
[419878995,1775460637494,-998.0,0.00011374,2]
[419878996,1775460637504,-1536.51453762,0.0001253,2]
[419878997,1775460637514,-150.0,0.00012593,2]
[419878998,1775460637523,-262515.9458,0.000126,2]
[419878999,1775460637533,-2095.95955817,0.00012658,2]
[419879000,1775460637543,-3048.69171011,0.00012658,2]
[419879001,1775460637552,-250.0,0.00012658,2]
[419879002,1775460637562,-262.3808947,0.00012699,2]
[419879003,1775460637571,-974.22,0.000127,2]
[419879004,1775460637581,-4171.28658585,0.000127,2]
[419879005,1775460637591,-12216.09645745,0.000127,2]
[419879006,1775460637601,-2189.39004588,0.000127,2]
[419879007,1775460637611,-500.0,0.0001276,3]
[419879008,1775460637620,-500.26271237,0.00012773,2]
[419879009,1775460637630,-500.32253722,0.00012773,2]
[419879010,1775460637640,-160.39801811,0.00012773,2]
[419879011,1775460637650,-193.60710548,0.00012783,2]
[419879012,1775460637660,-1500000.0,0.00012793,2]
[419879013,1775460637670,-4000.0,0.000128,4]
[419879014,1775460637680,-167.7646,0.000128,2]
[419879015,1775460637689,-9999.99,0.00012893,2]
[419879016,1775460637699,-150.99,0.00012893,2]
[419879017,1775460637709,-4227.25,0.00012893,2]
[419879018,1775460637718,-2323.89,0.00012893,2]
[419879019,1775460637728,-13920.41,0.00012893,2]
[419879020,1775460637738,-8000.0,0.000129,4]
[419879021,1775460637747,-250.0,0.00013,2]
[419879022,1775460637756,-12216.09645743,0.00013056,2]
[419879023,1775460637766,-152.0,0.00013073,3]
[419879024,1775460637775,-507.0,0.000131,2]
[419879025,1775460637785,-152.0,0.0001315,4]
[419879026,1775460637794,-2189.39004588,0.00013157,2]
[419879027,1775460637804,-152.0,0.00013228,5]
[419879028,1775460637813,-3545.4126,0.00013297,2]
[419879029,1775460637823,-17203.21351992,0.00013297,2]
[419879030,1775460637832,-1090.314,0.00013298,2]
[419879031,1775460637842,-152.0,0.00013305,6]
[419879032,1775460637852,-500.0,0.00013305,2]
[419879033,1775460637862,-177.45,0.00013352,2]
[419879034,1775460637871,-500.0,0.00013373,2]
[419879035,1775460637881,-500.0,0.00013373,2]
[419879036,1775460637890,-500.0,0.00013373,2]
[419879037,1775460637900,-500.0,0.00013373,2]
[419879038,1775460637911,-500.5883938,0.00013373,2]
[419879039,1775460637920,-500.0,0.00013373,2]
[419879040,1775460637930,-152.0,0.00013383,7]
[419879041,1775460637940,-200.0,0.0001339,2]
[419879042,1775460637949,-1337.30371513,0.0001339,2]
[419879043,1775460637959,-151.0,0.00013395,2]
[419879044,1775460637968,-151.0,0.00013395,2]
[419879046,1775460637978,-938.34,0.00013397,2]
[419879048,1775460637987,-500.0,0.00013397,2]
[419879050,1775460637997,-500.0,0.00013397,2]
[419879052,1775460638007,-500.0,0.00013397,2]
[419879054,1775460638016,-500.0,0.00013397,2]
[419879056,1775460638026,-500.0,0.00013397,2]
[419879059,1775460638036,-500.0,0.00013397,2]
[419879061,1775460638045,-500.0,0.00013397,2]
[419879063,1775460638054,-500.0,0.00013397,2]
[419879064,1775460638063,-500.0,0.00013397,2]
[419879066,1775460638074,-500.0,0.00013397,2]
[419879069,1775460638083,-500.0,0.00013397,2]
[419879070,1775460638093,-500.0,0.00013397,2]
[419879073,1775460638102,-500.0,0.00013397,2]
[419879074,1775460638112,-500.0,0.00013397,2]
[419879077,1775460638122,-500.0,0.00013397,2]
[419879079,1775460638131,-500.0,0.00013397,2]
[419879081,1775460638140,-500.0,0.00013397,2]
[419879083,1775460638150,-500.0,0.00013397,2]
[419879085,1775460638159,-500.0,0.00013397,2]
[419879087,1775460638169,-500.0,0.00013397,2]
[419879089,1775460638178,-500.0,0.00013397,2]
[419879091,1775460638187,-500.0,0.00013397,2]
[419879093,1775460638196,-500.0,0.00013397,2]
[419879095,1775460638210,-500.0,0.00013397,2]
[419879097,1775460638220,-500.0,0.00013397,2]
[419879099,1775460638229,-500.0,0.00013397,2]
[419879101,1775460638239,-500.0,0.00013397,2]
[419879103,1775460638249,-500.0,0.00013397,2]
[419879105,1775460638258,-500.0,0.00013397,2]
[419879107,1775460638268,-526.04175086,0.00013397,2]
[419879109,1775460638277,-500.0,0.00013397,2]
[419879111,1775460638286,-500.0,0.00013397,2]
[419879113,1775460638297,-500.0,0.00013397,2]
[419879115,1775460638306,-500.0,0.00013397,2]
[419879116,1775460638315,-500.0,0.00013397,2]
[419879118,1775460638325,-500.0,0.00013397,2]
[419879120,1775460638335,-500.0,0.00013397,2]
[419879121,1775460638345,-500.0,0.00013397,2]
[419879122,1775460638355,-1000.0,0.00013398,2]
[419879123,1775460638773,-12216.09645743,0.00013411,2]
[419879124,1775460638783,-152.0,0.0001346,8]
[419879125,1775460638793,-150.0,0.00013516,2]
[419879126,1775460638803,-267.591609,0.00013517,2]
[419879127,1775460638812,-152.0,0.00013537,9]
[419879128,1775460638822,-500.0,0.00013579,2]
[419879129,1775460638832,-17203.21351983,0.00013586,2]
[419879130,1775460638841,-2189.39004588,0.00013614,2]
[419879131,1775460638851,-152.0,0.00013615,10]
[419879132,1775460638867,-938.34,0.00013671,2]
[419879133,1775460638887,-152.0,0.00013692,11]
[419879134,1775460638899,-500.0,0.00013698,2]
[419879135,1775460638908,-500.0,0.00013698,2]
[419879136,1775460638918,-500.0,0.00013698,2]
[419879137,1775460638928,-500.0,0.00013698,2]
[419879138,1775460638937,-500.0,0.00013698,2]
[419879139,1775460638947,-500.0,0.00013698,2]
[419879140,1775460638958,-500.0,0.00013698,2]
[419879141,1775460638968,-500.0,0.00013698,2]
[419879142,1775460638978,-500.0,0.00013698,2]
[419879143,1775460638988,-500.0,0.00013698,2]
[419879144,1775460638998,-500.0,0.00013698,2]
[419879145,1775460639007,-500.0,0.00013698,2]
[419879146,1775460639018,-500.0,0.00013698,2]
[419879147,1775460639028,-500.0,0.00013698,2]
[419879148,1775460639037,-500.0,0.00013698,2]
[419879149,1775460639047,-500.0,0.00013698,2]
[419879150,1775460639056,-500.0,0.00013698,2]
[419879151,1775460639066,-500.0,0.00013698,2]
[419879152,1775460639075,-500.0,0.00013698,2]
[419879153,1775460639085,-500.0,0.00013698,2]
[419879154,1775460639094,-500.0,0.00013698,2]
[419879155,1775460639104,-500.0,0.00013698,2]
[419879156,1775460639114,-500.0,0.00013698,2]
[419879157,1775460639124,-500.0,0.00013698,2]
[419879158,1775460639134,-500.0,0.00013698,2]
[419879159,1775460639144,-500.0,0.00013698,2]
[419879160,1775460639153,-500.0,0.00013698,2]
[419879161,1775460639163,-500.0,0.00013698,2]
[419879162,1775460639172,-500.0,0.00013698,2]
[419879163,1775460639183,-500.0,0.00013698,2]
[419879164,1775460639192,-500.0,0.00013698,2]
[419879165,1775460639201,-500.0,0.00013698,2]
[419879166,1775460639210,-500.0,0.00013698,2]
[419879167,1775460639220,-500.0,0.00013698,2]
[419879168,1775460639229,-500.0,0.00013698,2]
[419879169,1775460639238,-500.0,0.00013698,2]
[419879170,1775460639248,-500.0,0.00013698,2]
[419879171,1775460639257,-500.0,0.00013698,2]
[419879172,1775460639266,-500.0,0.00013698,2]
[419879173,1775460639275,-500.0,0.00013698,2]
[419879174,1775460639284,-500.0,0.00013698,2]
[419879175,1775460639294,-500.0,0.00013698,2]
[419879176,1775460639304,-500.0,0.00013698,2]
[419879177,1775460639314,-500.0,0.00013698,2]
[419879178,1775460639324,-500.0,0.00013698,2]
[419879179,1775460639333,-500.0,0.00013698,2]
[419879180,1775460639342,-500.0,0.00013698,2]
[419879181,1775460639352,-500.0,0.00013698,2]
[419879182,1775460639363,-500.0,0.00013698,2]
[419879183,1775460639373,-500.0,0.00013698,2]
[419879184,1775460639383,-500.0,0.00013698,2]
[419879185,1775460639394,-500.0,0.00013698,2]
[419879186,1775460639404,-500.0,0.00013698,2]
[419879187,1775460639414,-500.0,0.00013698,2]
[419879188,1775460639424,-500.0,0.00013698,2]
[419879189,1775460639434,-500.0,0.00013698,2]
[419879190,1775460639444,-500.0,0.00013698,2]
[419879191,1775460639454,-500.0,0.00013698,2]
[419879192,1775460639463,-500.0,0.00013698,2]
[419879193,1775460639473,-500.0,0.00013698,2]
[419879194,1775460639483,-500.0,0.00013698,2]
[419879195,1775460639493,-500.0,0.00013698,2]
[419879196,1775460639503,-500.0,0.00013698,2]
[419879197,1775460639513,-500.0,0.00013698,2]
[419879198,1775460639523,-500.0,0.00013698,2]
[419879199,1775460639533,-502.76097898,0.00013698,2]
[419879200,1775460639543,-500.0,0.00013698,2]
[419879201,1775460639553,-507.01970036,0.00013698,2]
[419879202,1775460639562,-500.0,0.00013698,2]
[419879203,1775460639572,-500.0,0.00013698,2]
[419879204,1775460639581,-500.0,0.00013698,2]
[419879205,1775460639591,-500.0,0.00013698,2]
[419879206,1775460639600,-500.0,0.00013698,2]
[419879207,1775460639610,-500.0,0.00013698,2]
[419879208,1775460639620,-500.0,0.00013698,2]
[419879209,1775460639631,-500.0,0.00013698,2]
[419879210,1775460639641,-500.0,0.00013698,2]
[419879211,1775460639651,-500.0,0.00013698,2]
[419879212,1775460639660,-500.0,0.00013698,2]
[419879214,1775460639670,-500.0,0.00013698,2]
[419879215,1775460639680,-500.0,0.00013698,2]
[419879216,1775460639689,-500.0,0.00013698,2]
[419879217,1775460639699,-500.0,0.00013698,2]
[419879218,1775460639709,-500.0,0.00013698,2]
[419879219,1775460639719,-500.0,0.00013698,2]
[419879220,1775460639729,-500.0,0.00013698,2]
[419879221,1775460639739,-500.0,0.00013698,2]
[419879222,1775460639749,-500.0,0.00013698,2]
[419879223,1775460639759,-500.0,0.00013698,2]
[419879224,1775460639769,-500.0,0.00013698,2]
[419879225,1775460639778,-500.0,0.00013698,2]
[419879226,1775460639789,-500.0,0.00013698,2]
[419879227,1775460639799,-500.0,0.00013698,2]
[419879228,1775460639808,-500.0,0.00013698,2]
[419879229,1775460639819,-500.0,0.00013698,2]
[419879230,1775460639829,-500.0,0.00013698,2]
[419879231,1775460639840,-500.0,0.00013698,2]
[419879232,1775460639850,-500.0,0.00013698,2]
[419879233,1775460639860,-500.0,0.00013698,2]
[419879234,1775460639870,-500.0,0.00013698,2]
[419879235,1775460639879,-500.0,0.00013698,2]
[419879236,1775460639890,-500.0,0.00013698,2]
[419879237,1775460639900,-500.0,0.00013698,2]
[419879238,1775460639910,-500.0,0.00013698,2]
[419879239,1775460639919,-500.0,0.00013698,2]
[419879240,1775460639929,-500.0,0.00013698,2]
[419879241,1775460639939,-500.0,0.00013698,2]
[419879242,1775460639948,-500.0,0.00013698,2]
[419879243,1775460639958,-500.0,0.00013698,2]
[419879244,1775460639968,-500.0,0.00013698,2]
[419879245,1775460639978,-500.0,0.00013698,2]
[419879246,1775460639988,-500.0,0.00013698,2]
[419879247,1775460639997,-500.0,0.00013698,2]
[419879248,1775460640007,-500.0,0.00013698,2]
[419879249,1775460640017,-500.0,0.00013698,2]
[419879250,1775460640027,-500.0,0.00013698,2]
[419879251,1775460640037,-500.0,0.00013698,2]
[419879252,1775460640047,-500.0,0.00013698,2]
[419879253,1775460640056,-500.0,0.00013698,2]
[419879254,1775460640066,-500.0,0.00013698,2]
[419879255,1775460640075,-500.0,0.00013698,2]
[419879256,1775460640084,-508.61892667,0.00013698,2]
[419879257,1775460640094,-500.0,0.00013698,2]
[419879258,1775460640103,-500.0,0.00013698,2]
[419879259,1775460640113,-500.0,0.00013698,2]
[419879260,1775460640122,-500.0,0.00013698,2]
[419879261,1775460640132,-500.0,0.00013698,2]
[419879262,1775460640142,-500.0,0.00013698,2]
[419879263,1775460640152,-500.0,0.00013698,2]
[419879264,1775460640163,-150.0,0.00013699,2]
[419879265,1775460640173,-150.0,0.00013699,2]
[419879266,1775460640183,-150.0,0.00013699,2]
[419879267,1775460640193,-1498.68,0.00013699,2]
[419879268,1775460640203,-166.66,0.00013699,2]
[419879269,1775460640213,-200.0,0.00013699,2]
[419879270,1775460640223,-12216.09645743,0.00013767,2]
[419879271,1775460640233,-152.0,0.0001377,12]
[419879272,1775460640243,-2000.0,0.0001378,2]
[419879273,1775460640252,-3000.0,0.00013808,2]
[419879274,1775460640262,-1600.0,0.00013808,2]
[419879275,1775460640272,-166.66,0.00013836,2]
[419879276,1775460640282,-152.0,0.00013847,13]
[419879277,1775460640292,-500.0,0.00013853,2]
[419879278,1775460640302,-17203.21351983,0.00013875,2]
[419879279,1775460640312,-12100.0,0.000139,5]
[419879280,1775460640321,-1000.0,0.00013921,2]
[419879281,1775460640331,-1000.0,0.00013921,2]
[419879282,1775460640341,-1000.0,0.00013921,2]
[419879283,1775460640351,-704.26825693,0.00013921,2]
[419879284,1775460640360,-1000.0,0.00013921,2]
[419879285,1775460640370,-152.0,0.00013925,14]
[419879286,1775460640380,-200.0,0.00013938,2]
[419879287,1775460640390,-629.47078978,0.00013938,2]
[419879288,1775460640400,-500.0,0.00013944,2]
[419879289,1775460640410,-500.0,0.00013944,2]
[419879290,1775460640419,-500.0,0.00013944,2]
[419879291,1775460640430,-500.0,0.00013944,2]
[419879292,1775460640441,-500.0,0.00013944,2]
[419879293,1775460640451,-500.0,0.00013944,2]
[419879294,1775460640461,-500.0,0.00013944,2]
[419879295,1775460640471,-500.0,0.00013944,2]
[419879296,1775460640481,-500.0,0.00013944,2]
[419879297,1775460640491,-500.0,0.00013944,2]
[419879298,1775460640501,-500.0,0.00013944,2]
[419879299,1775460640510,-500.0,0.00013944,2]
[419879300,1775460640519,-500.0,0.00013944,2]
[419879301,1775460640529,-500.0,0.00013944,2]
[419879302,1775460640541,-500.0,0.00013944,2]
[419879303,1775460640551,-938.34,0.00013945,2]
[419879304,1775460640561,-150.0,0.00013973,2]
[419879305,1775460640570,-150.0,0.00013973,2]
[419879306,1775460640580,-166.66,0.00013973,2]
[419879307,1775460640590,-345.938054,0.00013977,7]
[419879308,1775460640600,-160.0,0.00013977,7]
[419879309,1775460640610,-311.077933,0.00013978,7]
[419879310,1775460640620,-241.321064,0.00013978,7]
[419879311,1775460640630,-160.0,0.00013978,2]
[419879312,1775460640640,-176.127296,0.00013978,2]
[419879313,1775460640651,-192.254593,0.00013978,2]
[419879314,1775460640660,-268.364066,0.00013978,7]
[419879315,1775460640670,-169.72267,0.00013978,2]
[419879316,1775460640679,-160.0,0.00013978,7]
[419879317,1775460640689,-202.437264,0.00013978,7]
[419879318,1775460640699,-244.874528,0.00013978,7]
[419879319,1775460640708,-152.0,0.00014002,15]
[419879320,1775460640718,-855.85192254,0.00014006,2]
[419879321,1775460640728,-2189.39004588,0.00014071,2]
[419879322,1775460640738,-152.0,0.0001408,16]
[419879323,1775460640748,-187.6331,0.000141,2]
[419879324,1775460640758,-166.66,0.0001411,2]
[419879325,1775460640768,-12216.09645743,0.00014122,2]
[419879326,1775460640778,-500.0,0.00014127,2]
[419879327,1775460640787,-152.0,0.00014157,17]
[419879328,1775460640798,-5491.6129,0.00014161,2]
[419879329,1775460640808,-17203.21351983,0.00014165,2]
[419879330,1775460640818,-160.0,0.00014197,2]
[419879331,1775460640828,-160.0,0.00014197,2]
[419879332,1775460640839,-507.0,0.00014215,2]
[419879333,1775460640851,-938.34,0.00014219,2]
[419879334,1775460640860,-152.0,0.00014235,18]
[419879335,1775460640870,-166.66,0.00014247,2]
[419879336,1775460640880,-150.0,0.00014247,2]
[419879337,1775460640890,-500.0,0.00014262,2]
[419879338,1775460640900,-500.0,0.00014262,2]
[419879339,1775460640910,-500.0,0.00014262,2]
[419879340,1775460640921,-500.0,0.00014262,2]
[419879341,1775460640931,-500.0,0.00014262,2]
[419879342,1775460640941,-500.0,0.00014262,2]
[419879343,1775460640951,-500.0,0.00014262,2]
[419879344,1775460640961,-500.0,0.00014262,2]
[419879345,1775460640970,-500.0,0.00014262,2]
[419879346,1775460640980,-500.0,0.00014262,2]
[419879347,1775460640990,-500.0,0.00014262,2]
[419879348,1775460641000,-1263.0,0.00014263,2]
[419879349,1775460641010,-926.573,0.00014263,2]
[419879350,1775460641019,-1219.716,0.00014263,2]
[419879351,1775460641028,-1347.0,0.00014263,2]
[419879352,1775460641038,-3240.0,0.00014298,2]
[419879353,1775460641048,-500.0,0.00014302,2]
[419879354,1775460641057,-500.0,0.00014302,2]
[419879355,1775460641067,-152.0,0.00014312,19]
[419879356,1775460641076,-166.66,0.00014384,2]
[419879357,1775460641086,-152.0,0.0001439,20]
[419879358,1775460641095,-1573.0,0.000144,2]
[419879359,1775460641105,-154.4710574,0.000144,2]
[419879360,1775460641115,-150.0,0.000144,2]
[419879361,1775460641125,-150.0,0.000144,2]
[419879362,1775460641134,-150.0,0.000144,2]
[419879363,1775460641144,-150.0,0.000144,2]
[419879364,1775460641153,-150.0,0.000144,2]
[419879365,1775460641162,-500.0,0.00014401,2]
[419879366,1775460641172,-500.0,0.00014403,2]
[419879367,1775460641182,-500.0,0.00014403,2]
[419879368,1775460641191,-500.0,0.00014403,2]
[419879369,1775460641201,-833.53149667,0.00014426,2]
[419879370,1775460641211,-1021.73765916,0.00014426,2]
[419879371,1775460641221,-1093.71481415,0.00014426,2]
[419879372,1775460641231,-1035.97843381,0.00014426,2]